[Event "EYCC Girls-U14 2019"]
[Site "Bratislava"]
[Date "2019.08.08"]
[Round "7.3"]
[White "Yakimova, Mariya"]
[Black "Pipiras, Filipa Fortuna"]
[Result "1-0"]
[ECO "E10"]
[WhiteElo "2308"]
[BlackElo "1959"]
[Annotator "NA"]
[PlyCount "103"]
[EventDate "2019.08.02"]
[EventType "swiss"]
[EventCountry "SVK"]
[SourceTitle "playchess.com"]
[Source "ChessBase"]
[SourceQuality "1"]
[TimeControl "40/5400+30:1800+30"]

1. d4 {[%emt 0:00:00]} Nf6 {[%emt 0:00:34]} 2. c4 {[%emt 0:00:00]} e6 {[%emt 0:00:26]} 3. Nf3 {[%emt 0:00:00]} d5 {[%emt 0:00:31]} 4. g3 {[%emt 0:00:00]} Bb4+ {[%emt 0:00:57]} 5. Bd2 {[%emt 0:00:00]} Bd6 {[%emt 0:00:47]} 6. Bg2 {[%emt 0:00:13]} c6 {[%emt 0:01:15]} 7. Qc2 {[%emt 0:00:23]} O-O {[%emt 0:02:22]} 8. O-O {[%emt 0:00:04]} Nbd7 {[%emt 0:00:56]} 9. b3 {[%emt 0:00:06]} Ne4 {[%emt 0:02:07]} 10. Nc3 {[%emt 0:03:23]} f5 {[%emt 0:06:25]} 11. Rae1 {[%emt 0:01:24]} Nxd2 {[%emt 0:04:02]} 12. Nxd2 {[%emt 0:00:05]} Nf6 {[%emt 0:00:17]} 13. Nf3 {[%emt 0:05:22]} Bd7 {[%emt 0:03:00]} 14. e3 {[%emt 0:07:02]} Ne4 {[%emt 0:05:02]} 15. Ne2 {[%emt 0:09:08]} Qf6 {[%emt 0:17:54]} 16. Nf4 {[%emt 0:01:48]} Rad8 {[%emt 0:04:43]} 17. Nd3 {[%emt 0:02:00]} Qe7 {[%emt 0:10:14]} 18. c5 {[%emt 0:07:27]} Bc7 {[%emt 0:00:26]} 19. b4 {[%emt 0:02:30]} b6 {[%emt 0:09:49]} 20. Nfe5 {[%emt 0:05:19]} bxc5 {[%emt 0:09:26]} 21. bxc5 {[%emt 0:00:21]} a5 {[%emt 0:00:44]} 22. Rb1 {[%emt 0:02:35]} Rb8 {[%emt 0:00:45]} 23. f3 {[%emt 0:03:12]} Nf6 {[%emt 0:01:38]} 24. Rb3 {[%emt 0:06:29]} Rxb3 {[%emt 0:00:29]} 25. axb3 {[%emt 0:00:36]} Rb8 {[%emt 0:00:37]} 26. Rb1 {[%emt 0:00:13]} Qe8 {[%emt 0:02:03]} 27. Qa2 {[%emt 0:01:26]} Qc8 {[%emt 0:02:16]} 28. Bf1 {[%emt 0:08:47]} Be8 {[%emt 0:01:48]} 29. Qa4 {[%emt 0:03:20]} Bd8 {[%emt 0:01:23]} 30. b4 {[%emt 0:02:51]} Qc7 {[%emt 0:07:35]} 31. Ra1 {[%emt 0:03:49]} Ra8 {[%emt 0:02:07]} 32. Nf4 {[%emt 0:00:19]} Bd7 {[%emt 0:00:29]} 33. b5 {[%emt 0:02:18]} cxb5 {[%emt 0:00:18]} 34. Bxb5 {[%emt 0:00:04]} Bxb5 {[%emt 0:00:30]} 35. Qxb5 {[%emt 0:00:04]} Qc8 {[%emt 0:01:27]} 36. Qc6 {[%emt 0:02:25]} Qxc6 {[%emt 0:01:31]} 37. Nxc6 {[%emt 0:00:05]} Kf7 {[%emt 0:00:40]} 38. Nxd8+ {[%emt 0:00:19]} Rxd8 {[%emt 0:00:06]} 39. Rxa5 {[%emt 0:00:02]} Rd7 {[%emt 0:00:22]} 40. Ra6 {[%emt 0:00:00]} Re7 {[%emt 0:00:00]} 41. Nd3 {[%emt 0:02:14]} Rb7 {[%emt 0:01:11]} 42. Kf2 {[%emt 0:01:25]} Ke7 {[%emt 0:00:38]} 43. Nf4 {[%emt 0:01:42]} Rb2+ {[%emt 0:00:40]} 44. Kf1 {[%emt 0:00:24]} Rxh2 {[%emt 0:01:19]} 45. Ra7+ {[%emt 0:00:43]} Ke8 {[%emt 0:00:09]} 46. Nxe6 {[%emt 0:00:11]} g6 {[%emt 0:00:17]} 47. c6 {[%emt 0:01:32]} Rc2 {[%emt 0:00:16]} 48. Nc5 {[%emt 0:00:10]} Kd8 {[%emt 0:00:12]} 49. Rf7 {[%emt 0:01:45]} Nh5 {[%emt 0:00:31]} 50. Nb7+ {[%emt 0:01:26]} Ke8 {[%emt 0:00:42]} 51. Nd6+ {[%emt 0:00:05]} Kd8 {[%emt 0:00:05]} 52. Rd7# {[%emt 0:00:04]} 1-0

[Event "EYCC Girls-U14 2019"]
[Site "Bratislava"]
[Date "2019.08.08"]
[Round "7.4"]
[White "Kirchei, Viktoriia"]
[Black "Mironenko, Galina"]
[Result "1-0"]
[ECO "A05"]
[WhiteElo "2006"]
[BlackElo "1995"]
[Annotator "NA"]
[PlyCount "101"]
[EventDate "2019.08.02"]
[EventType "swiss"]
[EventCountry "SVK"]
[SourceTitle "playchess.com"]
[Source "ChessBase"]
[SourceQuality "1"]
[TimeControl "40/5400+30:1800+30"]

1. Nf3 {[%emt 0:00:00]} Nf6 {[%emt 0:00:00]} 2. c4 {[%emt 0:00:00]} e6 {[%emt 0:01:03]} 3. g3 {[%emt 0:00:00]} d5 {[%emt 0:00:51]} 4. Bg2 {[%emt 0:00:15]} c5 {[%emt 0:02:38]} 5. O-O {[%emt 0:00:48]} Nc6 {[%emt 0:02:13]} 6. d3 {[%emt 0:07:19]} Be7 {[%emt 0:02:51]} 7. Bf4 {[%emt 0:04:19]} O-O {[%emt 0:04:05]} 8. Qc2 {[%emt 0:00:22]} Nh5 {[%emt 0:02:28]} 9. Be3 {[%emt 0:07:08]} d4 {[%emt 0:02:56]} 10. Bd2 {[%emt 0:01:33]} e5 {[%emt 0:02:53]} 11. a3 {[%emt 0:02:17]} a5 {[%emt 0:03:22]} 12. e4 {[%emt 0:02:43]} f5 {[%emt 0:08:12]} 13. exf5 {[%emt 0:00:13]} Bxf5 {[%emt 0:00:15]} 14. Re1 {[%emt 0:02:04]} Qd6 {[%emt 0:06:35]} 15. Ng5 {[%emt 0:07:40]} Bxg5 {[%emt 0:05:24]} 16. Bxg5 {[%emt 0:00:10]} Qg6 {[%emt 0:01:44]} 17. Bh4 {[%emt 0:12:20]} Bxd3 {[%emt 0:04:37]} 18. Qb3 {[%emt 0:00:12]} e4 {[%emt 0:08:33]} 19. Nd2 {[%emt 0:07:20]} Rfe8 {[%emt 0:15:34]} 20. Qxb7 {[%emt 0:01:43]} Rab8 {[%emt 0:04:28]} 21. Qd7 {[%emt 0:00:52]} Kh8 {[%emt 0:01:15]} 22. b3 {[%emt 0:07:05]} Re6 {[%emt 0:06:12]} 23. Bh3 {[%emt 0:07:49]} Re5 {[%emt 0:05:23]} 24. Bg2 {[%emt 0:08:31]} Qe8 {[%emt 0:04:15]} 25. Qxe8+ {[%emt 0:01:50]} Rbxe8 {[%emt 0:00:15]} 26. f4 {[%emt 0:01:07]} exf3 {[%emt 0:02:04]} 27. Nxf3 {[%emt 0:00:08]} Rxe1+ {[%emt 0:01:59]} 28. Rxe1 {[%emt 0:00:03]} Bg6 {[%emt 0:00:12]} 29. Rxe8+ {[%emt 0:01:00]} Bxe8 {[%emt 0:00:11]} 30. Nd2 {[%emt 0:00:08]} Ne5 {[%emt 0:01:44]} 31. Be7 {[%emt 0:00:30]} Nd3 {[%emt 0:00:29]} 32. Be4 {[%emt 0:00:35]} Nc1 {[%emt 0:00:36]} 33. Bxc5 {[%emt 0:00:31]} Nf6 {[%emt 0:00:16]} 34. Bf3 {[%emt 0:00:46]} d3 {[%emt 0:00:46]} 35. Kf2 {[%emt 0:00:52]} a4 {[%emt 0:00:31]} 36. b4 {[%emt 0:01:09]} Bf7 {[%emt 0:00:29]} 37. Bd4 {[%emt 0:00:49]} Nb3 {[%emt 0:00:30]} 38. Nxb3 {[%emt 0:00:33]} axb3 {[%emt 0:00:21]} 39. c5 {[%emt 0:00:56]} Ne8 {[%emt 0:00:41]} 40. Ke3 {[%emt 0:00:00]} Bc4 {[%emt 0:00:00]} 41. Be4 {[%emt 0:02:35]} Bb5 {[%emt 0:05:23]} 42. Bxd3 {[%emt 0:01:08]} Ba4 {[%emt 0:00:05]} 43. Be5 {[%emt 0:01:29]} Nf6 {[%emt 0:00:20]} 44. Bxf6 {[%emt 0:01:40]} gxf6 {[%emt 0:00:04]} 45. Kd4 {[%emt 0:00:33]} h5 {[%emt 0:00:11]} 46. Kc3 {[%emt 0:00:25]} h4 {[%emt 0:00:10]} 47. b5 {[%emt 0:00:22]} hxg3 {[%emt 0:00:06]} 48. hxg3 {[%emt 0:00:03]} b2 {[%emt 0:00:04]} 49. Kxb2 {[%emt 0:00:12]} f5 {[%emt 0:00:05]} 50. c6 {[%emt 0:00:13]} f4 {[%emt 0:00:04]} 51. c7 {[%emt 0:00:12]} 1-0

[Event "EYCC Girls-U14 2019"]
[Site "Bratislava"]
[Date "2019.08.08"]
[Round "7.5"]
[White "Anacoglu, Cisel"]
[Black "Hrebenshchykova, Yelyzaveta"]
[Result "0-1"]
[ECO "B80"]
[WhiteElo "1813"]
[BlackElo "1879"]
[Annotator "NA"]
[PlyCount "120"]
[EventDate "2019.08.02"]
[EventType "swiss"]
[EventCountry "SVK"]
[SourceTitle "playchess.com"]
[Source "ChessBase"]
[SourceQuality "1"]
[TimeControl "40/5400+30:1800+30"]

1. e4 {[%emt 0:00:00]} c5 {[%emt 0:00:00]} 2. Nf3 {[%emt 0:00:00]} e6 {[%emt 0:00:00]} 3. d4 {[%emt 0:00:00]} cxd4 {[%emt 0:00:00]} 4. Nxd4 {[%emt 0:00:00]} Nf6 {[%emt 0:00:00]} 5. Nc3 {[%emt 0:00:00]} d6 {[%emt 0:00:01]} 6. g3 {[%emt 0:00:26]} Be7 {[%emt 0:00:50]} 7. Bg2 {[%emt 0:00:07]} O-O {[%emt 0:00:09]} 8. O-O {[%emt 0:00:07]} a6 {[%emt 0:00:26]} 9. Re1 {[%emt 0:01:24]} Qc7 {[%emt 0:02:28]} 10. a4 {[%emt 0:04:34]} Bd7 {[%emt 0:05:43]} 11. Be3 {[%emt 0:01:58]} Nc6 {[%emt 0:01:28]} 12. Nxc6 {[%emt 0:00:18]} Bxc6 {[%emt 0:00:35]} 13. a5 {[%emt 0:00:47]} Rac8 {[%emt 0:15:30]} 14. Bb6 {[%emt 0:06:43]} Qb8 {[%emt 0:00:07]} 15. Na4 {[%emt 0:00:58]} Nd7 {[%emt 0:21:20]} 16. Bd4 {[%emt 0:03:04]} Nc5 {[%emt 0:10:40]} 17. Nb6 {[%emt 0:04:00]} Rcd8 {[%emt 0:00:05]} 18. c4 {[%emt 0:08:50]} e5 {[%emt 0:10:55]} 19. Bc3 {[%emt 0:00:07]} Bf6 {[%emt 0:00:16]} 20. Rb1 {[%emt 0:04:53]} Nd7 {[%emt 0:02:13]} 21. Nxd7 {[%emt 0:14:00]} Bxd7 {[%emt 0:01:14]} 22. Bb4 {[%emt 0:03:20]} Be6 {[%emt 0:00:48]} 23. b3 {[%emt 0:00:12]} Be7 {[%emt 0:04:46]} 24. f4 {[%emt 0:06:02]} b5 {[%emt 0:07:51]} 25. Bd2 {[%emt 0:07:40]} f6 {[%emt 0:04:07]} 26. f5 {[%emt 0:03:58]} Bf7 27. Be3 {[%emt 0:01:03]} Rc8 {[%emt 0:02:24]} 28. cxb5 {[%emt 0:05:01]} Qxb5 {[%emt 0:00:12]} 29. Bb6 {[%emt 0:00:36]} Bd8 {[%emt 0:03:05]} 30. Qxd6 {[%emt 0:04:57]} Rc6 {[%emt 0:01:35]} 31. Qd2 {[%emt 0:00:46]} Bxb6+ {[%emt 0:00:05]} 32. axb6 {[%emt 0:00:03]} Qxb6+ {[%emt 0:00:07]} 33. Qe3 {[%emt 0:01:00]} Qb4 {[%emt 0:00:50]} 34. Rec1 {[%emt 0:01:21]} Rxc1+ {[%emt 0:00:42]} 35. Rxc1 {[%emt 0:00:39]} Qxb3 {[%emt 0:03:42]} 36. Qxb3 {[%emt 0:02:25]} Bxb3 {[%emt 0:00:04]} 37. Bf1 {[%emt 0:00:07]} a5 {[%emt 0:00:12]} 38. Bc4+ {[%emt 0:00:27]} Bxc4 {[%emt 0:00:05]} 39. Rxc4 {[%emt 0:00:02]} Ra8 {[%emt 0:00:16]} 40. Kf2 {[%emt 0:00:00]} a4 {[%emt 0:00:00]} 41. Ke3 {[%emt 0:10:37]} Kf8 {[%emt 0:09:01]} 42. Kd3 {[%emt 0:02:28]} a3 {[%emt 0:00:10]} 43. Rc1 {[%emt 0:00:06]} Ke7 {[%emt 0:00:21]} 44. Ra1 {[%emt 0:01:08]} Kd6 {[%emt 0:07:14]} 45. Kc4 {[%emt 0:01:40]} Kc6 {[%emt 0:02:04]} 46. Kb4 {[%emt 0:00:31]} a2 {[%emt 0:01:01]} 47. Rc1+ {[%emt 0:02:12]} Kb6 {[%emt 0:00:18]} 48. Ra1 {[%emt 0:00:04]} Ra7 {[%emt 0:00:25]} 49. g4 {[%emt 0:00:23]} h6 {[%emt 0:00:19]} 50. h4 {[%emt 0:00:40]} Ra8 {[%emt 0:00:55]} 51. Kc4 {[%emt 0:00:58]} Ra4+ {[%emt 0:00:27]} 52. Kd5 {[%emt 0:00:09]} Kb5 {[%emt 0:00:32]} 53. g5 {[%emt 0:00:41]} hxg5 {[%emt 0:00:49]} 54. hxg5 {[%emt 0:00:04]} Kb4 {[%emt 0:00:52]} 55. gxf6 {[%emt 0:00:07]} gxf6 {[%emt 0:00:02]} 56. Ke6 {[%emt 0:00:05]} Ra6+ {[%emt 0:00:06]} 57. Kf7 {[%emt 0:00:12]} Kb3 {[%emt 0:00:40]} 58. Rh1 {[%emt 0:00:12]} a1=Q {[%emt 0:01:55]} 59. Rxa1 {[%emt 0:00:04]} Rxa1 {[%emt 0:00:05]} 60. Kxf6 {[%emt 0:00:05]} Ra5 {[%emt 0:00:07]} 0-1

[Event "EYCC Girls-U14 2019"]
[Site "Bratislava"]
[Date "2019.08.08"]
[Round "7.6"]
[White "Bashylina, Luisa"]
[Black "Wikar, Martyna"]
[Result "1-0"]
[ECO "B30"]
[WhiteElo "1989"]
[BlackElo "1951"]
[Annotator "NA"]
[PlyCount "101"]
[EventDate "2019.08.02"]
[EventType "swiss"]
[EventCountry "SVK"]
[SourceTitle "playchess.com"]
[Source "ChessBase"]
[SourceQuality "1"]
[TimeControl "40/5400+30:1800+30"]

1. e4 {[%emt 0:00:00]} c5 {[%emt 0:00:00]} 2. Nf3 {[%emt 0:00:00]} Nc6 {[%emt 0:00:00]} 3. Bb5 {[%emt 0:00:00]} d6 {[%emt 0:00:02]} 4. d4 {[%emt 0:00:00]} cxd4 {[%emt 0:00:13]} 5. Qxd4 {[%emt 0:00:00]} Bd7 {[%emt 0:00:30]} 6. Bxc6 {[%emt 0:00:01]} Bxc6 {[%emt 0:00:22]} 7. Nc3 {[%emt 0:00:07]} e5 {[%emt 0:00:25]} 8. Qd3 {[%emt 0:00:06]} h6 {[%emt 0:00:06]} 9. Nd2 {[%emt 0:00:13]} Nf6 {[%emt 0:02:43]} 10. Nc4 {[%emt 0:00:43]} Be7 {[%emt 0:05:24]} 11. Ne3 {[%emt 0:00:57]} g6 {[%emt 0:03:42]} 12. O-O {[%emt 0:01:24]} Qd7 {[%emt 0:03:16]} 13. b4 {[%emt 0:11:29]} a6 {[%emt 0:04:06]} 14. a4 {[%emt 0:00:58]} Qe6 {[%emt 0:13:36]} 15. Bd2 {[%emt 0:10:15]} O-O {[%emt 0:05:25]} 16. b5 {[%emt 0:00:55]} axb5 {[%emt 0:01:12]} 17. axb5 {[%emt 0:00:09]} Bd7 {[%emt 0:02:47]} 18. Ned5 {[%emt 0:01:11]} Nxd5 {[%emt 0:11:40]} 19. Nxd5 {[%emt 0:00:28]} Rxa1 {[%emt 0:04:06]} 20. Rxa1 {[%emt 0:00:07]} Bg5 {[%emt 0:07:34]} 21. Bb4 {[%emt 0:04:17]} Rc8 {[%emt 0:04:33]} 22. c4 {[%emt 0:06:23]} Bd8 {[%emt 0:02:11]} 23. h3 {[%emt 0:06:19]} f5 {[%emt 0:02:17]} 24. f3 {[%emt 0:10:32]} Kg7 {[%emt 0:03:27]} 25. Ra7 {[%emt 0:03:40]} fxe4 {[%emt 0:02:42]} 26. fxe4 {[%emt 0:01:00]} b6 {[%emt 0:09:00]} 27. Ne3 {[%emt 0:07:48]} Bg5 {[%emt 0:00:44]} 28. Nd5 {[%emt 0:01:32]} Bd8 {[%emt 0:00:20]} 29. Rb7 {[%emt 0:00:57]} Kg8 {[%emt 0:01:40]} 30. Bxd6 {[%emt 0:07:17]} Qxd6 {[%emt 0:05:28]} 31. Rxd7 {[%emt 0:00:28]} Qc5+ {[%emt 0:00:21]} 32. Kh2 {[%emt 0:02:00]} Qf2 {[%emt 0:03:13]} 33. Qg3 {[%emt 0:04:27]} Qxg3+ {[%emt 0:00:20]} 34. Kxg3 {[%emt 0:00:05]} h5 {[%emt 0:00:38]} 35. Rd6 {[%emt 0:01:36]} Kf7 {[%emt 0:00:27]} 36. Kf3 {[%emt 0:00:56]} Kg7 {[%emt 0:01:45]} 37. Ke2 {[%emt 0:00:33]} g5 {[%emt 0:01:03]} 38. Kd3 {[%emt 0:00:26]} Ra8 {[%emt 0:00:27]} 39. Kc3 {[%emt 0:03:02]} g4 {[%emt 0:00:15]} 40. hxg4 {[%emt 0:00:00]} hxg4 {[%emt 0:00:00]} 41. Kb3 {[%emt 0:02:57]} Kf7 {[%emt 0:02:14]} 42. Nxb6 {[%emt 0:01:11]} Bxb6 {[%emt 0:00:23]} 43. Rxb6 {[%emt 0:00:06]} Rd8 {[%emt 0:00:24]} 44. Kc3 {[%emt 0:02:02]} Rd1 {[%emt 0:00:31]} 45. Rb7+ {[%emt 0:02:33]} Kf6 {[%emt 0:01:04]} 46. c5 {[%emt 0:03:36]} Rc1+ {[%emt 0:01:00]} 47. Kb4 {[%emt 0:00:34]} g3 {[%emt 0:01:26]} 48. c6 {[%emt 0:01:06]} Rc2 {[%emt 0:00:35]} 49. c7 {[%emt 0:00:20]} Ke6 {[%emt 0:00:16]} 50. Rb6+ {[%emt 0:00:53]} Kd7 {[%emt 0:00:12]} 51. Rc6 1-0

[Event "EYCC Girls-U14 2019"]
[Site "Bratislava"]
[Date "2019.08.08"]
[Round "7.7"]
[White "Sumarriva Paulin, Laura"]
[Black "Tarasenka, Aliaksandra"]
[Result "1/2-1/2"]
[ECO "A84"]
[WhiteElo "1928"]
[BlackElo "2192"]
[Annotator "NA"]
[PlyCount "76"]
[EventDate "2019.08.02"]
[EventType "swiss"]
[EventCountry "SVK"]
[SourceTitle "playchess.com"]
[Source "ChessBase"]
[SourceQuality "1"]
[TimeControl "40/5400+30:1800+30"]

1. d4 {[%emt 0:00:00]} f5 {[%emt 0:00:00]} 2. c4 {[%emt 0:00:00]} g6 {[%emt 0:00:00]} 3. Nc3 {[%emt 0:00:00]} Bg7 {[%emt 0:00:10]} 4. Nf3 {[%emt 0:00:08]} d6 {[%emt 0:00:40]} 5. e3 {[%emt 0:00:36]} Nf6 {[%emt 0:00:34]} 6. Be2 {[%emt 0:00:17]} O-O {[%emt 0:01:07]} 7. O-O {[%emt 0:00:38]} Nc6 {[%emt 0:00:55]} 8. d5 {[%emt 0:01:15]} Ne5 {[%emt 0:00:49]} 9. Nxe5 {[%emt 0:00:21]} dxe5 {[%emt 0:00:08]} 10. e4 {[%emt 0:01:53]} f4 {[%emt 0:01:13]} 11. c5 {[%emt 0:00:53]} g5 {[%emt 0:02:17]} 12. Qb3 {[%emt 0:05:39]} Kh8 {[%emt 0:03:24]} 13. Rd1 {[%emt 0:09:54]} g4 {[%emt 0:06:23]} 14. Bd2 {[%emt 0:06:38]} Qe8 {[%emt 0:20:48]} 15. Nb5 {[%emt 0:14:40]} Nxe4 {[%emt 0:29:11]} 16. Nxc7 {[%emt 0:05:08]} Qh5 {[%emt 0:05:26]} 17. Nxa8 {[%emt 0:32:32]} f3 {[%emt 0:00:23]} 18. Bf1 {[%emt 0:00:44]} Nxf2 {[%emt 0:08:53]} 19. g3 {[%emt 0:09:43]} Nxd1 {[%emt 0:06:47]} 20. Rxd1 {[%emt 0:01:51]} f2+ {[%emt 0:00:55]} 21. Kh1 {[%emt 0:00:08]} Bf5 {[%emt 0:01:58]} 22. Qe3 {[%emt 0:02:26]} Rxa8 {[%emt 0:02:29]} 23. Qxf2 {[%emt 0:01:03]} Rf8 {[%emt 0:03:01]} 24. Qe3 {[%emt 0:00:56]} Bc2 {[%emt 0:02:19]} 25. Rc1 {[%emt 0:01:02]} Rf6 {[%emt 0:01:13]} 26. Bg2 {[%emt 0:02:10]} Bh6 {[%emt 0:01:05]} 27. Qe2 {[%emt 0:00:25]} Bxd2 {[%emt 0:00:50]} 28. Rxc2 {[%emt 0:01:00]} Ba5 {[%emt 0:00:27]} 29. c6 {[%emt 0:01:07]} bxc6 {[%emt 0:00:12]} 30. dxc6 {[%emt 0:00:17]} Bc7 {[%emt 0:00:14]} 31. Qa6 {[%emt 0:01:05]} Qf5 {[%emt 0:00:35]} 32. Rc1 {[%emt 0:00:35]} Bb6 33. Rf1 {[%emt 0:00:42]} Qe6 {[%emt 0:01:28]} 34. Rxf6 {[%emt 0:00:21]} Qxf6 {[%emt 0:00:14]} 35. Qc8+ {[%emt 0:00:19]} Kg7 {[%emt 0:00:15]} 36. Qxg4+ {[%emt 0:00:25]} Qg6 {[%emt 0:00:29]} 37. Qxg6+ {[%emt 0:00:21]} hxg6 {[%emt 0:00:44]} 38. Be4 {[%emt 0:00:18]} g5 {[%emt 0:00:41]} 1/2-1/2

[Event "EYCC Girls-U14 2019"]
[Site "Bratislava"]
[Date "2019.08.08"]
[Round "7.8"]
[White "Bondareva, Daria"]
[Black "Kozachenko, Maria"]
[Result "1/2-1/2"]
[ECO "B50"]
[WhiteElo "1998"]
[BlackElo "1862"]
[Annotator "NA"]
[PlyCount "160"]
[EventDate "2019.08.02"]
[EventType "swiss"]
[EventCountry "SVK"]
[SourceTitle "playchess.com"]
[Source "ChessBase"]
[SourceQuality "1"]
[TimeControl "40/5400+30:1800+30"]

1. e4 {[%emt 0:00:00]} c5 {[%emt 0:00:00]} 2. Nf3 {[%emt 0:00:00]} d6 {[%emt 0:00:00]} 3. c3 {[%emt 0:00:08]} Nf6 {[%emt 0:00:29]} 4. Bd3 {[%emt 0:00:12]} e6 {[%emt 0:00:33]} 5. O-O {[%emt 0:03:12]} Be7 {[%emt 0:01:01]} 6. Bc2 {[%emt 0:01:18]} Nbd7 {[%emt 0:02:32]} 7. Qe2 {[%emt 0:03:55]} Qc7 {[%emt 0:04:01]} 8. d4 {[%emt 0:04:47]} e5 {[%emt 0:05:29]} 9. dxe5 {[%emt 0:04:19]} dxe5 {[%emt 0:00:41]} 10. a4 {[%emt 0:06:53]} Nf8 {[%emt 0:07:27]} 11. Na3 {[%emt 0:09:25]} Ng6 {[%emt 0:03:10]} 12. h3 {[%emt 0:07:12]} Nh5 {[%emt 0:06:55]} 13. Nc4 {[%emt 0:05:02]} Nhf4 {[%emt 0:02:18]} 14. Bxf4 {[%emt 0:00:05]} Nxf4 {[%emt 0:00:26]} 15. Qd2 {[%emt 0:01:52]} f6 {[%emt 0:02:30]} 16. Ne3 {[%emt 0:05:38]} Be6 {[%emt 0:03:33]} 17. c4 {[%emt 0:08:19]} g6 {[%emt 0:03:31]} 18. Nd5 {[%emt 0:02:51]} Nxd5 {[%emt 0:04:29]} 19. cxd5 {[%emt 0:03:32]} Bd7 {[%emt 0:01:52]} 20. Qc3 {[%emt 0:01:33]} O-O {[%emt 0:05:19]} 21. Nd2 {[%emt 0:00:40]} a6 {[%emt 0:04:57]} 22. a5 {[%emt 0:01:09]} Bb5 {[%emt 0:01:23]} 23. Bd3 {[%emt 0:02:34]} Kg7 {[%emt 0:02:07]} 24. Qb3 {[%emt 0:03:06]} Qd7 {[%emt 0:03:23]} 25. Rfd1 {[%emt 0:01:56]} Bd6 {[%emt 0:01:51]} 26. Bc4 {[%emt 0:02:06]} Rfb8 {[%emt 0:01:44]} 27. Qc3 {[%emt 0:01:09]} Qc7 {[%emt 0:02:45]} 28. Qd3 {[%emt 0:01:51]} Bd7 {[%emt 0:02:32]} 29. Nb1 {[%emt 0:02:29]} f5 {[%emt 0:05:58]} 30. Nc3 {[%emt 0:02:44]} f4 {[%emt 0:01:41]} 31. Rdb1 {[%emt 0:02:37]} Rf8 {[%emt 0:01:38]} 32. Qf3 {[%emt 0:01:29]} Qd8 {[%emt 0:03:16]} 33. Ra3 {[%emt 0:02:20]} Rb8 {[%emt 0:01:54]} 34. Nd1 {[%emt 0:03:48]} h5 {[%emt 0:01:55]} 35. Rba1 {[%emt 0:02:35]} Qh4 {[%emt 0:01:47]} 36. Be2 {[%emt 0:01:36]} Rh8 {[%emt 0:00:59]} 37. Qb3 {[%emt 0:00:45]} c4 {[%emt 0:01:23]} 38. Qb6 {[%emt 0:01:12]} Bxa3 {[%emt 0:01:05]} 39. Rxa3 {[%emt 0:00:16]} Qe7 {[%emt 0:02:06]} 40. Bxc4 {[%emt 0:00:00]} Rhd8 {[%emt 0:00:00]} 41. Be2 {[%emt 0:04:42]} Be8 {[%emt 0:05:10]} 42. Rc3 {[%emt 0:02:04]} Qd6 {[%emt 0:02:46]} 43. Rc7+ {[%emt 0:06:38]} Kf6 {[%emt 0:02:28]} 44. Rxb7 {[%emt 0:00:32]} Qxb6 {[%emt 0:00:19]} 45. Rxb6+ {[%emt 0:00:02]} Rxb6 {[%emt 0:00:17]} 46. axb6 {[%emt 0:00:02]} Rb8 {[%emt 0:00:40]} 47. Bxa6 {[%emt 0:00:07]} Rxb6 {[%emt 0:00:11]} 48. Bd3 {[%emt 0:00:51]} Ke7 {[%emt 0:02:40]} 49. Kf1 {[%emt 0:04:51]} Kd6 {[%emt 0:01:16]} 50. h4 {[%emt 0:02:28]} Kc5 {[%emt 0:01:16]} 51. Bc2 {[%emt 0:01:22]} Kd4 {[%emt 0:01:05]} 52. Ke1 {[%emt 0:01:03]} Bb5 {[%emt 0:01:59]} 53. f3 {[%emt 0:00:35]} Bc4 {[%emt 0:01:56]} 54. Ba4 {[%emt 0:01:23]} Bb3 {[%emt 0:01:13]} 55. Bxb3 {[%emt 0:00:04]} Rxb3 {[%emt 0:01:01]} 56. Kd2 {[%emt 0:00:05]} Rb7 {[%emt 0:00:53]} 57. Ke2 {[%emt 0:03:19]} Kc4 {[%emt 0:01:22]} 58. Kd2 {[%emt 0:01:05]} g5 {[%emt 0:02:55]} 59. hxg5 {[%emt 0:00:37]} Rg7 {[%emt 0:00:25]} 60. Ke2 {[%emt 0:00:39]} Rxg5 {[%emt 0:00:28]} 61. Kf2 {[%emt 0:00:58]} Rg6 {[%emt 0:01:05]} 62. Kg1 {[%emt 0:01:36]} Kb3 {[%emt 0:01:01]} 63. Nf2 {[%emt 0:01:02]} Kc2 {[%emt 0:00:51]} 64. b4 {[%emt 0:01:51]} Rb6 {[%emt 0:00:48]} 65. Kh2 {[%emt 0:00:17]} Rxb4 {[%emt 0:00:31]} 66. g3 {[%emt 0:00:02]} fxg3+ {[%emt 0:03:51]} 67. Kxg3 {[%emt 0:00:03]} Kd2 {[%emt 0:00:56]} 68. Nh3 {[%emt 0:01:38]} Ke3 {[%emt 0:01:44]} 69. Ng5 {[%emt 0:00:03]} Rb1 {[%emt 0:05:34]} 70. Nf7 {[%emt 0:02:51]} Rg1+ {[%emt 0:01:31]} 71. Kh2 {[%emt 0:00:20]} Rg7 {[%emt 0:00:40]} 72. Nxe5 {[%emt 0:00:52]} Kf4 {[%emt 0:00:15]} 73. Nc6 {[%emt 0:01:08]} Kxf3 {[%emt 0:00:52]} 74. d6 {[%emt 0:00:55]} Kxe4 {[%emt 0:04:15]} 75. Ne7 {[%emt 0:00:16]} Kf3 {[%emt 0:00:43]} 76. Nc6 {[%emt 0:01:11]} Rg2+ {[%emt 0:00:53]} 77. Kh3 {[%emt 0:00:11]} Rg1 {[%emt 0:01:09]} 78. Kh2 {[%emt 0:00:19]} Rd1 {[%emt 0:00:22]} 79. d7 {[%emt 0:00:06]} Rd2+ {[%emt 0:00:16]} 80. Kh3 {[%emt 0:01:26]} Rxd7 {[%emt 0:00:19]} 1/2-1/2

[Event "EYCC Girls-U14 2019"]
[Site "Bratislava"]
[Date "2019.08.08"]
[Round "7.9"]
[White "Hakobyan, Astghik"]
[Black "Lhotska, Anna"]
[Result "1-0"]
[ECO "B56"]
[WhiteElo "1916"]
[BlackElo "1966"]
[Annotator "NA"]
[PlyCount "69"]
[EventDate "2019.08.02"]
[EventType "swiss"]
[EventCountry "SVK"]
[SourceTitle "playchess.com"]
[Source "ChessBase"]
[SourceQuality "1"]
[TimeControl "40/5400+30:1800+30"]

1. e4 {[%emt 0:00:00]} c5 {[%emt 0:00:00]} 2. Nf3 {[%emt 0:00:00]} d6 {[%emt 0:00:00]} 3. d4 {[%emt 0:00:00]} cxd4 {[%emt 0:00:00]} 4. Nxd4 {[%emt 0:00:00]} Nf6 {[%emt 0:00:00]} 5. Nc3 {[%emt 0:00:00]} Nc6 {[%emt 0:00:01]} 6. Nb3 {[%emt 0:02:20]} e6 {[%emt 0:01:42]} 7. Be3 {[%emt 0:00:21]} Be7 {[%emt 0:00:43]} 8. f3 {[%emt 0:01:32]} a6 {[%emt 0:09:15]} 9. Qd2 {[%emt 0:03:52]} b5 {[%emt 0:00:50]} 10. g4 {[%emt 0:03:02]} Bb7 {[%emt 0:07:30]} 11. O-O-O {[%emt 0:01:26]} Ne5 {[%emt 0:03:08]} 12. Qf2 {[%emt 0:11:40]} Rc8 {[%emt 0:08:03]} 13. Bb6 {[%emt 0:06:19]} Qd7 {[%emt 0:00:07]} 14. Bd4 {[%emt 0:02:48]} Nc4 {[%emt 0:15:31]} 15. g5 {[%emt 0:07:01]} Nh5 {[%emt 0:01:10]} 16. Qh4 {[%emt 0:02:33]} e5 {[%emt 0:07:27]} 17. Qxh5 {[%emt 0:05:24]} exd4 {[%emt 0:04:12]} 18. Nxd4 {[%emt 0:08:02]} g6 {[%emt 0:04:54]} 19. Qh4 {[%emt 0:08:02]} b4 {[%emt 0:06:20]} 20. Nd5 {[%emt 0:09:44]} Bxd5 {[%emt 0:01:01]} 21. exd5 {[%emt 0:00:02]} O-O {[%emt 0:10:20]} 22. Bxc4 {[%emt 0:05:32]} Rxc4 {[%emt 0:00:09]} 23. f4 {[%emt 0:00:55]} f6 {[%emt 0:03:26]} 24. Qg3 {[%emt 0:08:53]} fxg5 {[%emt 0:00:32]} 25. fxg5 {[%emt 0:00:09]} Rfc8 {[%emt 0:02:01]} 26. Kb1 {[%emt 0:01:48]} a5 {[%emt 0:00:37]} 27. h4 {[%emt 0:02:08]} Bf8 {[%emt 0:01:01]} 28. h5 {[%emt 0:02:23]} Bg7 {[%emt 0:02:06]} 29. Nc6 {[%emt 0:00:09]} Re8 {[%emt 0:03:20]} 30. hxg6 {[%emt 0:01:37]} hxg6 {[%emt 0:00:16]} 31. Qh2 {[%emt 0:00:58]} Ree4 {[%emt 0:01:27]} 32. Qh7+ {[%emt 0:00:38]} Kf7 {[%emt 0:00:07]} 33. b3 {[%emt 0:00:25]} Qf5 {[%emt 0:07:42]} 34. bxc4 {[%emt 0:01:03]} Qf2 {[%emt 0:00:34]} 35. Rhf1 {[%emt 0:00:30]} 1-0